Cogmind - Beta 16.1 @@@ ROGUE MODE // 2026.04.17 @ 03:42:46 Player: H3-MLN Result: Destroyed by S-27 Virus with Autogun Performance ------------- Evolutions (5) 2500 Regions Visited (15) 3000 Robots Destroyed (228) 1140 Value Destroyed (6940) 6940 Prototype IDs (63) 1260 Alien Tech Used (1) 200 Bonus (7102) 7102 TOTAL SCORE: 22142 Bonus ------- High Alert Combat Kills 681 Follower Combat Kills 1409 Hunted by Unchained 500 Subatomizer Sterilization 3000 Met Imprinter 300 Was Imprinted 300 Met Warlord at Base 500 MAIN.C Attacked Warlord 500 Warlord Defense Kills 646 Friendly Fire -734 Cogmind --------- Core Integrity 0/1000 Matter 285/300 Energy 73/100 System Corruption 0% Temperature Cool (0) Movement Flying (35) Location -4/Proximity Caves Parts ------- > --- POWER (1) -------- (None) > --- PROPULSION (4) --- Cooled VTOL Module > --- UTILITY (7) ------ (None) > --- WEAPON (6) ------- (None) > --- INVENTORY (5) ---- Improved Matter Compressor (48) Minesniffer Drone Bay (0/10) Peak State ------------ > --- POWER ------------ Micro Fission Core Improved Quantum Reactor > --- PROPULSION ------- Armored Medium Treads Armored Medium Treads Compact Wheel Compact Wheel Armored Wheel > --- UTILITY ---------- Improved Cooling System Huge Storage Unit Improved Matter Compressor Experimental Optical Array Centrium Light Armor Plating Improved Remote Shield Minesniffer Drone Bay Rainbow Chip > --- WEAPON ----------- Vortex Shotgun Vortex Shotgun 1B-0RG's Assimilator > --- INVENTORY -------- Cooled VTOL Module Cooled VTOL Module Cooled VTOL Module Cooled VTOL Module Large Storage Unit Matter Compressor Matter Compressor Gravity Neutralizer Microactuators Centrium Light Armor Plating Advanced Focal Shield Trap Extractor Improved Trap Extractor Advanced Trap Extractor Hacking Drone Bay Zionite Phaser-S Heavy Machine Gun Heavy Autocannon Greatsword Power Sword Power Sword Blade Trap [Rating: 185] Favorites ----------- Power Ion Engine Engine Ion Engine Power Core Neutrino Core Reactor Cold Fusion Reactor Propulsion Wheel Treads Spiked Treads Leg Aluminum Leg Wheel Wheel Hover Unit Aerolev Unit Flight Unit Cooled VTOL Module Utility Large Storage Unit Device Improved Sensor Array Storage Large Storage Unit Processor Improved Signal Interpreter Hackware Hacking Suite Protection Reflective Plating Weapon Subdweller Beam Cannon Energy Gun Gatling Laser Energy Cannon Subdweller Beam Cannon Ballistic Gun Improved Heavy Machine Gun Ballistic Cannon Slug Cannon Launcher Grenade Launcher Special Weapon Remote Datajack Impact Weapon Flail Slashing Weapon Power Sword Special Melee Weapon 1B-0RG's Assimilator Build | -11 -10 -10 -8 -8 -7 -7 -7 -7 -6 -6 -5 -5 -5 -5 -4 ------- Run | Yrd Mat Sub Mat Sto Fac Low Low Zio Pro Fac Fac Upp Upp War Pro Slots Evolved 10 | . . . 4 . 2 . . . . 2 2 . . . . Power . | . . . . . . . . . . . . . . . . Propulsion 2 | . . . 1 . 1 . . . . . . . . . . Utility 4 | . . . 2 . 1 . . . . . 1 . . . . Weapon 4 | . . . 1 . . . . . . 2 1 . . . . Parts Attached 254 | 7 10 27 7 35 32 6 10 5 2 46 38 7 4 17 1 Power 22 | 1 1 3 2 4 2 . 1 . 1 2 2 1 . 2 . Engine 14 | 1 1 3 2 3 2 . 1 . . 1 . . . . . Core 5 | . . . . 1 . . . . 1 . 2 1 . . . Reactor 3 | . . . . . . . . . . 1 . . . 2 . Propulsion 73 | 2 2 6 3 6 13 2 3 1 . 17 13 1 1 2 1 Treads 17 | 1 1 2 . 2 . 1 . 1 . 4 3 . 1 1 . Leg 3 | . . . . . 1 . 2 . . . . . . . . Wheel 48 | 1 1 4 3 3 11 1 1 . . 11 10 1 . 1 . Hover 3 | . . . . 1 . . . . . 2 . . . . . Flight 2 | . . . . . 1 . . . . . . . . . 1 Utility 84 | 2 5 5 2 12 10 2 . 2 1 16 14 4 . 9 . Device 41 | 1 2 3 . 6 4 1 . 2 . 6 8 3 . 5 . Storage 10 | 1 3 1 . . 2 . . . . . 2 . . 1 . Processor 10 | . . . . . 4 . . . . 2 1 1 . 2 . Hackware 3 | . . . . 2 . . . . . 1 . . . . . Protection 20 | . . 1 2 4 . 1 . . 1 7 3 . . 1 . Artifact . | . . . . . . . . . . . . . . . . Weapon 75 | 2 2 13 . 13 7 2 6 2 . 11 9 1 3 4 . Energy Gun 21 | 1 . 2 . 5 3 . 2 . . 2 3 1 . 2 . Energy Cannon 10 | . . 4 . . 2 1 2 . . . 1 . . . . Ballistic Gun 13 | 1 . 1 . 2 1 . . . . 5 3 . . . . Ballistic Cannon 9 | . . 3 . 2 . . 1 . . . 1 . 1 1 . Launcher 7 | . 2 1 . 2 . 1 . . . 1 . . . . . Special Weapon 3 | . . . . 1 . . . 1 . . 1 . . . . Impact Weapon 4 | . . 1 . . 1 . . . . 2 . . . . . Slashing Weapon 6 | . . 1 . . . . 1 1 . 1 . . 1 1 . Piercing Weapon . | . . . . . . . . . . . . . . . . Special Melee Weapon 2 | . . . . 1 . . . . . . . . 1 . . Unidentified Prototypes 28 | . . . . 7 4 . . 2 1 5 3 . 1 5 . Corrupted Parts 1 | . . 1 . . . . . . . . . . . . . System Corruption 5 | . . 5 . . . . . . . . . . . . . Parts Lost 88 | . . 7 6 10 5 . 12 . . 14 16 1 3 13 1 Power 8 | . . 2 . . 1 . 1 . . 1 1 . . 2 . Propulsion 34 | . . 2 3 3 3 . 4 . . 5 7 1 1 5 . Utility 19 | . . 2 . 4 1 . 2 . . 2 4 . 1 3 . Weapon 27 | . . 1 3 3 . . 5 . . 6 4 . 1 3 1 Highest Loss Streak 12 | . . 1 6 4 1 . 12 . . 4 6 3 1 10 11 To Critical Strikes 1 | . . 1 . . . . . . . . . . . . . Average Backups 16 | 3 10 12 13 14 11 21 23 24 23 24 21 19 21 22 3 Power . | . 1 . 1 . . . . 1 1 1 . . . . . Propulsion 3 | 1 2 1 1 . 2 6 6 5 5 7 5 4 4 4 . Utility 6 | . 2 5 5 7 4 8 8 9 9 9 12 9 8 9 2 Weapon 4 | . 4 4 2 3 2 3 6 5 5 3 1 2 6 8 . Tool/Special . | . . . . . . . . . . . . . . . . Unused Backups 35 | . 1 5 . 3 3 1 1 2 1 9 3 1 . 5 . Power 4 | . . 1 . . . . . . . 2 . 1 . . . Propulsion 4 | . . . . . . . . . . 2 . . . 2 . Utility 17 | . . 1 . 3 2 1 . . 1 5 2 . . 2 . Weapon 6 | . 1 2 . . 1 . . 2 . . . . . . . Tool/Special 4 | . . 1 . . . . 1 . . . 1 . . 1 . Average Slot Usage (%) 92 | . 100 99 73 85 96 92 87 91 91 85 80 91 80 76 5 Engine 8 | . 14 13 9 8 6 7 6 7 1 . 3 . . . . Core 1 | . . . . . . . . . 5 1 . 7 9 4 . Treads 13 | . 23 24 . 8 . 1 4 6 7 6 4 4 5 5 . Leg 1 | . . . . . 1 . 3 8 7 . . . . . . Wheel 11 | . 4 3 25 16 26 28 19 15 14 17 16 11 11 12 . Device 10 | . 13 9 . 9 10 13 12 7 7 6 9 18 18 17 . Storage 9 | . 14 14 9 8 7 7 7 7 7 6 5 4 4 5 . Processor 3 | . . . . . 10 7 7 7 7 3 5 7 9 9 . Protection 4 | . . 3 4 5 6 1 2 6 7 8 5 5 4 3 . Energy Gun 4 | . 13 2 7 6 14 15 9 . . . 6 8 2 1 . Energy Cannon 7 | . . 9 . . . 1 8 15 16 10 2 . . . . Ballistic Gun 2 | . 13 . . 9 4 . . . . 11 2 14 3 . . Ballistic Cannon 4 | . . 8 7 2 1 . . . . . 1 4 1 3 . Launcher 3 | . 1 6 . . . . . . 2 . . . . . . Impact Weapon 1 | . . . . . 1 5 . . . 1 5 . . . . Slashing Weapon 1 | . . . 9 5 . . 1 4 3 3 5 . 5 2 2 Peak Build Rating 185 | 7 11 40 48 59 58 60 55 54 54 88 100 120 165 185 14 Average Rating 46 | 4 8 15 43 52 50 49 50 47 51 73 79 109 151 166 9 On Entrance 52 | . 7 11 40 41 54 51 55 46 49 54 59 91 120 165 2 Avg Prop Armor Cover (%) 8 | 14 11 3 . 6 4 10 11 11 11 6 8 5 8 7 . Naked Turns 5 | . . . . . . . . . . . . . . 2 3 Heaviest Build 225 | 13 37 211 221 225 164 170 171 171 180 207 199 157 196 219 5 Greatest Support 68 | 16 40 40 46 32 52 58 48 20 20 68 52 38 38 44 5 Greatest Overweight (x) 27 | . 1 8 10 27 5 3 8 8 8 12 18 6 6 6 . Average Overweight (x) 3 | . . 1 5 7 1 2 4 7 8 4 4 4 4 4 . Largest Inventory Capacity 35 | 8 15 35 35 35 35 30 30 30 30 30 30 25 25 25 5 Average Capacity 22 | 6 11 15 35 34 17 30 30 30 30 30 28 25 25 24 5 Most Carried 35 | 6 15 34 35 35 25 30 30 30 30 30 30 25 25 25 5 Average Carried 21 | 3 10 14 33 33 16 26 28 29 29 29 27 24 24 24 2 Final Capacity 35 | 8 15 35 35 35 30 30 30 30 30 30 25 25 25 5 5 Final Carried 34 | 6 15 34 33 32 25 30 29 30 30 29 24 25 25 5 2 Class Distribution -------------------- 42% | Mutant 19% | Hauler-Mutant 8% | Hauler-Skirmisher 6% | Hauler-Tank 5% | Trapper-Mutant 4% | Scavenger-Gunner Dominant Class ---------------- Mutant | -10/Materials Mutant | -10/Subcaves Hauler-Mutant | -8/Materials Hauler-Mutant | -8/Storage Scavenger-Gunner | -7/Factory Hauler-Mutant | -7/Lower Caves Hauler-Skirmisher | -7/Lower Caves Hauler-Mutant | -7/Zion Hauler-Skirmisher | -6/Proximity Caves Hauler-Tank | -6/Factory Hauler-Gladiator | -5/Factory Scavenger-Executioner | -5/Upper Caves Trapper-Mutant | -5/Upper Caves Trapper-Mutant | -5/Warlord Trapper-Mutant | -4/Proximity Caves Resources | -11 -10 -10 -8 -8 -7 -7 -7 -7 -6 -6 -5 -5 -5 -5 -4 ----------- Run | Yrd Mat Sub Mat Sto Fac Low Low Zio Pro Fac Fac Upp Upp War Pro Matter Collected 12006 | 291 162 1476 236 1054 545 257 264 85 180 1834 1141 281 1307 2893 . Remotely . | . . . . . . . . . . . . . . . . Salvage Created 8970 | 114 582 839 369 1780 1263 182 245 . 159 1323 1651 177 26 232 28 Parts 454 | 8 37 61 19 68 58 11 13 . 12 67 78 15 3 4 . Haulers Intercepted 8 | . 2 . 1 2 1 . . . . 2 . . . . . Recyclers Shooed 10 | . . . . . 2 . . . . 3 5 . . . . Parts Field Recycled . | . . . . . . . . . . . . . . . . Retrieved Matter . | . . . . . . . . . . . . . . . . Parts Self-Destructed 60 | . . 6 . . . 6 14 . 16 . . 11 7 . . Prevented 2 | . . . . . . 1 . . . . . 1 . . . Parts Restored . | . . . . . . . . . . . . . . . . Kills | -11 -10 -10 -8 -8 -7 -7 -7 -7 -6 -6 -5 -5 -5 -5 -4 ------- Run | Yrd Mat Sub Mat Sto Fac Low Low Zio Pro Fac Fac Upp Upp War Pro Combat Hostiles Destroyed 147 | . 9 23 6 28 17 9 9 . 7 13 16 3 . 6 1 Melee 10 | . . . . 6 . . . . . . 3 . . . 1 Guns 50 | . 7 1 1 7 16 1 . . . 5 9 2 . 1 . Cannons 34 | . . 13 1 6 1 1 1 . 1 3 1 1 . 5 . AOE 48 | . 2 8 4 6 . 7 8 . 6 5 2 . . . . Classes Destroyed 24 | 2 5 3 2 2 3 1 1 . 1 2 1 . . 1 . Worker 32 | . 2 . . 3 8 . . . . 10 9 . . . . Builder 6 | . 2 . . 2 1 . . . . 1 . . . . . Tunneler 2 | 2 . . . . . . . . . . . . . . . Hauler 8 | . 2 . 1 2 1 . . . . 2 . . . . . Recycler 20 | 1 2 . 2 4 4 . . . . 2 5 . . . . Minesweeper 2 | . . . . . . . . . 1 . . 1 . . . Mechanic 4 | . . . . 1 . . . . . 1 2 . . . . Operator 2 | . . . . . . . . . . 1 1 . . . . Watcher 3 | . . . . . 2 . . . . 1 . . . . . Swarmer 41 | . 5 . 2 7 3 7 7 . 6 3 . . . . 1 Grunt 32 | . 4 1 2 12 5 1 . . . 5 2 . . . . Brawler 1 | . . . . . 1 . . . . . . . . . . Duelist 2 | . . . 1 1 . . . . . . . . . . . Protector 2 | . . . . . . . . . . . . . . 2 . Sentry 16 | . . . 1 6 5 . . . . 3 1 . . . . Specialist 2 | . . . . . . . . . . . 2 . . . . Hunter 8 | . . . . 1 . . . . 1 . 3 1 . 2 . Programmer 16 | . . . . . 3 . 1 . . 2 8 2 . . . Behemoth 2 | . . . . . . . 1 . . . . . . 1 . Artisan 1 | . . 1 . . . . . . . . . . . . . Cobbler 1 | . . 1 . . . . . . . . . . . . . Subdweller 22 | . . 22 . . . . . . . . . . . . . Z-Heavy 2 | . . . . . . . . . . 1 1 . . . . Decomposer 1 | . . . . . . . . . . . . . 1 . . Packrat 2 | . . . . . . . 2 . . . . . . . . Mutant 1 | . . . . . . 1 . . . . . . . . . Best Kill Streak 11 | 3 11 3 7 8 6 4 4 . 3 4 11 2 . 2 1 Combat Bots Only 8 | . 4 3 4 7 4 4 4 . 3 3 8 2 . 2 1 Max Kills in Single Turn 4 | 1 3 3 4 3 1 3 2 . 2 2 2 1 1 1 1 Gunslinging 1 | . . . . . . . . . . . 1 . . . . Exploded 3 | . 1 3 2 3 . 3 2 . 2 2 1 . . . . Melee 1 | . . . . 1 . . . . . . 1 . . . 1 Uniques/NPCs Destroyed 2 | . . . . 1 . . . . . . . . . 1 . 01-MTF (-8/Storage) LV-01A (-5/Warlord) Combat | -11 -10 -10 -8 -8 -7 -7 -7 -7 -6 -6 -5 -5 -5 -5 -4 -------- Run | Yrd Mat Sub Mat Sto Fac Low Low Zio Pro Fac Fac Upp Upp War Pro Hostile Shots Fired 1376 | . 48 78 56 186 127 5 73 . 13 256 268 12 45 186 23 Missed 337 | . 13 23 13 48 46 3 15 . 7 41 71 6 8 37 6 Hits 1039 | . 35 55 43 138 81 2 58 . 6 215 197 6 37 149 17 Melee 6 | . . . . 6 . . . . . . . . . . . Projectile 1033 | . 35 55 43 132 81 2 58 . 6 215 197 6 37 149 17 AOE 13 | . . 3 . . . . . . . . . . . 10 . Critical Strikes 80 | . . 3 2 10 1 . 2 . . 47 11 1 . 3 . Actively Blocked 1 | . . . . . . . . . . . 1 . . . . Part Disruptions 5 | . . . . 4 . . . . . . 1 . . . . Damage Taken 18946 | . 301 1127 573 2469 709 27 1476 . 116 3926 4087 100 559 3222 254 Core 2561 | . 23 95 52 479 87 . 375 . 18 429 267 . 61 512 163 Absorbed by Shields 964 | . 84 178 . . 115 . . . . 214 . . 155 218 . Redirected to Shielding 259 | . . . 24 135 . . . . . . 100 . . . . Ignored by Resistances 340 | . . . . . . . . . 2 4 . . 119 215 . Regen/Repaired (Parts) 806 | . . . . 459 . . . . . . . . 123 224 . Core Remaining (%) 47 | 100 . 52 . 3 . . . . 31 49 . . . . . Volleys Fired 590 | 7 34 189 12 64 72 7 28 1 9 58 76 5 7 21 . Largest 6 | 2 2 2 2 3 3 3 3 1 3 5 4 6 1 2 . Hottest 285 | 60 60 160 83 154 183 190 250 5 190 225 220 285 80 127 . Shots Fired 1115 | 14 66 270 23 126 167 13 53 1 15 174 132 23 7 31 . Gun 645 | 14 66 36 11 79 162 6 35 . . 95 104 18 7 12 . Cannon 357 | . . 184 11 28 5 3 11 . 10 66 19 5 . 15 . Launcher 102 | . . 50 1 18 . 4 7 . 5 10 7 . . . . Special 11 | . . . . 1 . . . 1 . 3 2 . . 4 . Kinetic 469 | 7 34 155 11 53 44 . 8 . . 87 36 19 . 15 . Thermal 425 | . . 62 . 55 123 9 38 . 10 71 40 2 7 8 . Explosive 58 | . . 24 1 . . 4 7 . 5 10 7 . . . . Electromagnetic 119 | 7 32 29 11 18 . . . . . . 20 2 . . . Entropic 8 | . . . . . . . . . . . . . . 8 . Phasic 30 | . . . . . . . . . . 3 27 . . . . Robot Hit Streak 27 | 4 11 13 4 9 27 16 7 1 3 10 7 4 2 7 . Robot Miss Streak 7 | 1 6 7 5 5 3 2 6 . 2 7 5 3 1 3 . Penetration Max . | . . . . . . . . . . . . . . . . Secondary Targets 4 | . . . . 1 2 . . . . . 1 . . . . Max Gunslinging Chain 1 | . . . . 1 1 . . . . . 1 . . . . Shots Hit Robots 706 | 8 35 120 11 114 131 8 42 1 8 98 93 11 2 22 2 Core Hits 398 | 4 22 45 12 56 79 17 21 . 14 51 60 7 1 8 1 Critical Kills 3 | . . 1 . . . . . . . . 2 . . . . Critical Parts Destroyed 8 | . 1 3 . 1 . . . . . 1 2 . . . . Critical Strikes 32 | 1 1 6 . 8 1 . 3 . . 1 10 . . . 1 Burn 7 | . . . . 2 1 . 3 . . . 1 . . . . Destroy 12 | . 1 6 . 1 . . . . . . 4 . . . . Blast 5 | . . . . 4 . . . . . . 1 . . . . Corrupt 2 | 1 . . . . . . . . . . 1 . . . . Smash 1 | . . . . . . . . . . 1 . . . . . Sever 3 | . . . . 1 . . . . . . 1 . . . 1 Intensify 2 | . . . . . . . . . . . 2 . . . . Melee Attacks 158 | . . 15 1 67 . 1 1 1 3 27 34 1 3 1 3 Impact 27 | . . 11 . 2 . 1 . . . 8 5 . . . . Slashing 130 | . . 4 1 64 . . 1 1 3 19 29 1 3 1 3 Piercing . | . . . . . . . . . . . . . . . . Sneak Attacks 39 | . . 1 . 11 . . 1 . 2 13 10 1 . . . Combat Hostiles . | . . . . . . . . . . . . . . . . Follow-up Attacks 5 | . . . . . . . . . . 2 2 . 1 . . Damage Inflicted 26256 | 109 753 3415 583 4215 2907 617 1740 . 989 4050 5223 414 48 1100 93 Guns 8987 | 109 515 305 135 772 2862 138 724 . . 1003 1720 265 48 391 . Cannons 5419 | . . 2110 119 398 45 52 273 . 166 1150 379 55 . 672 . Explosions 7196 | . 238 923 329 1300 . 427 679 . 694 787 1819 . . . . Melee 4647 | . . 77 . 1743 . . 64 . 129 1110 1305 94 . 32 93 Ramming . | . . . . . . . . . . . . . . . . Kinetic 5630 | 40 251 1663 119 668 396 . 210 . . 828 491 292 . 672 . Thermal 7603 | . 238 722 199 762 2511 190 787 . 166 1226 684 . 48 70 . Explosive 5201 | . . 665 130 . . 427 679 . 694 787 1819 . . . . Electromagnetic 2123 | 69 264 288 135 1042 . . . . . . 297 28 . . . Impact 289 | . . 77 . . . . . . . 212 . . . . . Slashing 4358 | . . . . 1743 . . 64 . 129 898 1305 94 . 32 93 Piercing . | . . . . . . . . . . . . . . . . Entropic 326 | . . . . . . . . . . . . . . 326 . Phasic 726 | . . . . . . . . . . 99 627 . . . . Highest Corruption 30 | . . 5 . 5 . . . . . 2 30 30 30 30 . Average Corruption 21 | . . 5 . 4 . . . . . 1 17 30 30 30 . Corruption Purged . | . . . . . . . . . . . . . . . . Corruption Blocked . | . . . . . . . . . . . . . . . . Effects 146 | . . 12 . 3 . . . . . . 43 28 57 3 . Message Errors 28 | . . 3 . 2 . . . . . . 7 7 9 . . Matter Fused 39 | . . 2 . . . . . . . . 9 7 19 2 . Heat Flow Errors 16 | . . 1 . . . . . . . . 7 3 5 . . Energy Discharges 16 | . . 1 . . . . . . . . 3 4 7 1 . Parts Fused 3 | . . . . . . . . . . . 3 . . . . Data Loss (minor) 23 | . . 2 . . . . . . . . 4 5 12 . . Data Loss (major) 7 | . . 2 . . . . . . . . 2 1 2 . . Misfires 4 | . . . . 1 . . . . . . 3 . . . . Alerts 5 | . . 1 . . . . . . . . 1 . 3 . . Weapon Failures 5 | . . . . . . . . . . . 4 1 . . . Overload Shots 7 | . . . . . . . . . . 7 . . . . . Overflow Damage 1122 | . 6 . 70 229 . 56 92 . 31 327 251 . . 60 . Projectiles 89 | . . . . . . . . . . 14 15 . . 60 . Explosions 259 | . 6 . 70 15 . 56 37 . 14 19 42 . . . . Melee 774 | . . . . 214 . . 55 . 17 294 194 . . . . Knockbacks 27 | . . 17 1 2 . . . . . 3 1 . . 3 . Impact 3 | . . . . . . . . . . 3 . . . . . Kinetic 23 | . . 17 . 2 . . . . . . 1 . . 3 . Secondary 1 | . . . 1 . . . . . . . . . . . . Self-Inflicted Damage 600 | . 32 1 43 140 . . 34 . . 96 254 . . . . Shots 17 | . 1 1 1 6 . . 1 . . 2 5 . . . . Rammed . | . . . . . . . . . . . . . . . . Targets Rammed . | . . . . . . . . . . . . . . . . Kicked . | . . . . . . . . . . . . . . . . Crushed . | . . . . . . . . . . . . . . . . Highest Temperature 509 | . 60 221 65 345 326 54 509 . 168 362 376 241 147 311 . Average Temperature 97 | . 33 63 35 121 82 26 173 . 75 92 123 90 39 60 . Received Heat Transfer 2782 | . 64 32 225 642 209 . 466 . 9 191 369 . 142 433 . Effects 15 | . . . . . . . . . . 8 7 . . . . Shutdowns 1 | . . . . . . . . . . . 1 . . . . Interference 13 | . . . . . . . . . . 8 5 . . . . Damage (minor) 1 | . . . . . . . . . . . 1 . . . . Siege Activations . | . . . . . . . . . . . . . . . . Martial Activations . | . . . . . . . . . . . . . . . . Shielding Activations . | . . . . . . . . . . . . . . . . Robots Disrupted 1 | . 1 . . . . . . . . . . . . . . Combat Hostiles 1 | . 1 . . . . . . . . . . . . . . Robots Corrupted 7 | . . 1 . 4 . . . . . 1 1 . . . . Combat Hostiles 5 | . . 1 . 3 . . . . . . 1 . . . . Parts Fried 15 | 2 . 2 . 7 . . . . . 2 2 . . . . Impact Corruptions 4 | . . . . . . . . . . 4 . . . . . Robots Melted . | . . . . . . . . . . . . . . . . Combat Hostiles . | . . . . . . . . . . . . . . . . Parts Melted 24 | . . . . 3 14 1 . . 1 2 3 . . . . Heat Transferred 13936 | . 350 999 300 1557 5519 399 2024 . 274 1311 1031 . 74 98 . Parts Sabotaged . | . . . . . . . . . . . . . . . . Parts Stolen . | . . . . . . . . . . . . . . . . Parts Stripped . | . . . . . . . . . . . . . . . . Power Chain Reactions 11 | . 3 . 2 6 . . . . . . . . . . . Alert | -11 -10 -10 -8 -8 -7 -7 -7 -7 -6 -6 -5 -5 -5 -5 -4 ------- Run | Yrd Mat Sub Mat Sto Fac Low Low Zio Pro Fac Fac Upp Upp War Pro Maximum Alert Level 5 | . . . 5 3 1 . . . . 1 1 . . . . Low Security (%) 42 | 100 100 . . . 66 . . . . 32 57 . . . . Level 1 33 | . . . . . 33 . . . . 67 42 . . . . Level 2 . | . . . . 4 . . . . . . . . . . . Level 3 21 | . . . . 95 . . . . . . . . . . . Level 4 . | . . . . . . . . . . . . . . . . Level 5 1 | . . . 100 . . . . . . . . . . . . High Security . | . . . . . . . . . . . . . . . . Max Security . | . . . . . . . . . . . . . . . . Sterilizations 1 | . . . . . 1 . . . . . . . . . . Peak Influence 2531 | 10 195 . 2531 1054 347 . . . . 370 304 . . . . Initial 2436 | . . . 2436 1052 347 . . . . 6 78 . . . . Average 347 | 1 99 . 2462 819 169 . . . . 192 164 . . . . Influence Increases 10460 | 15 282 4950 195 914 558 244 286 . 544 991 870 85 120 371 35 Destroy 0b10 Robot/C 3180 | . 180 20 120 540 340 200 240 . 260 440 480 60 80 200 20 Destroy 0b10 Robot/NC 430 | 15 40 . 15 60 80 . . . 15 100 90 5 . 10 . Destroy Leader 636 | . 34 10 22 124 106 30 40 . 40 120 80 20 10 . . Allied During Kill 535 | . . . . . . 14 6 . 229 160 25 . 30 71 . Successful Hack 35 | . 6 . . 23 . . . . . 6 . . . . . Disable Machine 225 | . 15 . 15 75 15 . . . . 90 15 . . . . Destroy Structure 259 | . 7 . 23 17 2 . . . . 60 150 . . . . Partial Spotted 15 | . . . . . . . . . . 15 . . . . . Lose Combat Pursuer 5145 | . . 4920 . 75 15 . . . . . 30 . . 90 15 Influence Decreases 10435 | 15 204 343 2389 2639 1147 396 271 40 534 841 774 341 120 371 10 Entered New Map 4439 | . . 38 2249 1439 419 67 6 40 . 4 82 95 . . . Time Decay 4361 | 15 204 245 80 640 678 329 131 . 474 577 512 236 120 120 . Search Patrol Dispatched 200 | . . . . 200 . . . . . . . . . . . Lost Part 672 | . . 60 60 100 50 . 82 . . 140 160 10 . . 10 Lost Ally 613 | . . . . 110 . . 52 . 60 120 20 . . 251 . Purge Threat 150 | . . . . 150 . . . . . . . . . . . Squads Dispatched 17 | . . . . 4 3 . . . . 5 5 . . . . Investigation . | . . . . . . . . . . . . . . . . Extermination 10 | . . . . . 3 . . . . 4 3 . . . . Reinforcement 4 | . . . . 1 . . . . . 1 2 . . . . Assault 3 | . . . . 3 . . . . . . . . . . . Garrison . | . . . . . . . . . . . . . . . . Intercept . | . . . . . . . . . . . . . . . . Searches Triggered 2 | . . . . 2 . . . . . . . . . . . Unchained Authorized 1 | . . . . . . . . . . 1 . . . . . Construction Impeded . | . . . . . . . . . . . . . . . . Haulers Reinforced . | . . . . . . . . . . . . . . . . Active Scanning Responses . | . . . . . . . . . . . . . . . . Cargo Convoy Interrupts 1 | . . . . . . . . . . . 1 . . . . Stealth | -11 -10 -10 -8 -8 -7 -7 -7 -7 -6 -6 -5 -5 -5 -5 -4 --------- Run | Yrd Mat Sub Mat Sto Fac Low Low Zio Pro Fac Fac Upp Upp War Pro Distress Signals 8 | . 1 . 1 3 1 . . . . 1 . . . 1 . Communications Jammed . | . . . . . . . . . . . . . . . . Distress Signals . | . . . . . . . . . . . . . . . . Times Spotted 549 | . 18 275 12 47 20 6 9 . 13 32 44 3 8 56 6 Peak Tracking Total 21 | . 7 6 6 8 4 3 4 . 4 5 10 2 4 21 7 Tactical Retreats 74 | . . 65 . 2 1 . . . . . 2 . . 3 1 Traps | -11 -10 -10 -8 -8 -7 -7 -7 -7 -6 -6 -5 -5 -5 -5 -4 ------- Run | Yrd Mat Sub Mat Sto Fac Low Low Zio Pro Fac Fac Upp Upp War Pro Traps Triggered 15 | . . 8 . 3 1 . . . . 2 . . . 1 . Indirectly 10 | . . 8 . 2 . . . . . . . . . . . Trap Hack Attempts . | . . . . . . . . . . . . . . . . Triggered . | . . . . . . . . . . . . . . . . Disarmed 11 | . . . . 11 . . . . . . . . . . . Reprogrammed . | . . . . . . . . . . . . . . . . Reused . | . . . . . . . . . . . . . . . . Traps Extracted 5 | . . . . . . . . . . . . . . 5 . Installed 4 | . . . . . . . . . . . 4 . . . . Triggered . | . . . . . . . . . . . . . . . . Most Traps Carried 18 | . . . . . . . . . . . 4 9 9 18 . Machines | -11 -10 -10 -8 -8 -7 -7 -7 -7 -6 -6 -5 -5 -5 -5 -4 ---------- Run | Yrd Mat Sub Mat Sto Fac Low Low Zio Pro Fac Fac Upp Upp War Pro Machines Disabled 17 | . 1 1 1 5 1 1 . . . 6 1 . . . . Max in Single Turn 4 | . 1 1 1 1 1 1 . . . 4 1 . . . . Garrison Access 4 | . . . . . 3 . . . . . 1 . . . . Machines Repaired . | . . . . . . . . . . . . . . . . Machines Dismantled . | . . . . . . . . . . . . . . . . Machines Sabotaged . | . . . . . . . . . . . . . . . . Overloaded Fab Kills . | . . . . . . . . . . . . . . . . Hacking | -11 -10 -10 -8 -8 -7 -7 -7 -7 -6 -6 -5 -5 -5 -5 -4 --------- Run | Yrd Mat Sub Mat Sto Fac Low Low Zio Pro Fac Fac Upp Upp War Pro Machines Accessed 28 | . 5 3 . 7 3 2 . . . 3 2 1 . 2 . Terminals 14 | . 5 . . 5 3 1 . . . . . . . . . Fabricators . | . . . . . . . . . . . . . . . . Repair Stations 2 | . . . . 2 . . . . . . . . . . . Recycling Units 2 | . . . . . . . . . . 2 . . . . . Scanalyzers . | . . . . . . . . . . . . . . . . Garrison Access 3 | . . . . . . . . . . 1 2 . . . . Total Hacks 70 | . 16 3 . 28 4 3 . . . 7 2 1 . 6 . Successful 41 | . 4 3 . 20 1 3 . . . 2 1 1 . 6 . Failed 29 | . 12 . . 8 3 . . . . 5 1 . . . . Catastrophic 7 | . 1 . . 1 2 . . . . 2 1 . . . . Database Lockouts . | . . . . . . . . . . . . . . . . Manual 53 | . 12 . . 10 1 . . . . 22 8 . . . . Terminals 41 | . 16 . . 19 4 2 . . . . . . . . . Fabricators . | . . . . . . . . . . . . . . . . Repair Stations 9 | . . . . 9 . . . . . . . . . . . Recycling Units 6 | . . . . . . . . . . 6 . . . . . Scanalyzers . | . . . . . . . . . . . . . . . . Garrison Access 3 | . . . . . . . . . . 1 2 . . . . Terminal Hacks 25 | . 4 3 . 7 1 3 . . . . . 1 . 6 . Record 2 | . . . . . . 2 . . . . . . . . . Part Schematic 1 | . 1 . . . . . . . . . . . . . . Robot Analysis 2 | . 2 . . . . . . . . . . . . . . Prototype ID Bank 5 | . . . . . . . . . . . . . . 5 . Open Door 5 | . . 1 . 1 . 1 . . . . . 1 . 1 . Open DSF 1 | . . . . . 1 . . . . . . . . . . Unreport Threat 1 | . . . . 1 . . . . . . . . . . . Disarm Traps 3 | . . . . 3 . . . . . . . . . . . Hauler Manifests 2 | . 1 . . 1 . . . . . . . . . . . Zone Layout 1 | . . . . 1 . . . . . . . . . . . Proto ID Catalog 1 | . . 1 . . . . . . . . . . . . . Release Object 1 | . . 1 . . . . . . . . . . . . . Fabricator Hacks . | . . . . . . . . . . . . . . . . Repair Station Hacks 8 | . . . . 8 . . . . . . . . . . . Scan Component 4 | . . . . 4 . . . . . . . . . . . Repair 4 | . . . . 4 . . . . . . . . . . . Recycling Unit Hacks 1 | . . . . . . . . . . 1 . . . . . Retrieve Components 1 | . . . . . . . . . . 1 . . . . . Scanalyzer . | . . . . . . . . . . . . . . . . Garrison Access Hacks 1 | . . . . . . . . . . . 1 . . . . Seal Access 1 | . . . . . . . . . . . 1 . . . . Unauthorized Hacks 6 | . . . . 5 . . . . . 1 . . . . . Terminals 5 | . . . . 5 . . . . . . . . . . . Track 1 | . . . . 1 . . . . . . . . . . . Botnet 2 | . . . . 2 . . . . . . . . . . . Operators 1 | . . . . 1 . . . . . . . . . . . Skim 1 | . . . . 1 . . . . . . . . . . . Fabricators . | . . . . . . . . . . . . . . . . Repair Stations . | . . . . . . . . . . . . . . . . Recycling Units 1 | . . . . . . . . . . 1 . . . . . Mask 1 | . . . . . . . . . . 1 . . . . . Scanalyzers . | . . . . . . . . . . . . . . . . Garrison Access . | . . . . . . . . . . . . . . . . Data Cores Recovered . | . . . . . . . . . . . . . . . . Used . | . . . . . . . . . . . . . . . . Hacking Detections 17 | . 5 . . 5 3 . . . . 3 1 . . . . Full Trace Events . | . . . . . . . . . . . . . . . . Feedback Events . | . . . . . . . . . . . . . . . . Feedback Blocked . | . . . . . . . . . . . . . . . . Robot Schematics Acquired 4 | . . . . . . . . 4 . . . . . . . Robots Built . | . . . . . . . . . . . . . . . . Authchips . | . . . . . . . . . . . . . . . . Time . | . . . . . . . . . . . . . . . . Total Robot Build Rating . | . . . . . . . . . . . . . . . . Part Schematics Acquired 16 | . 1 . . . . . . 15 . . . . . . . Parts Built . | . . . . . . . . . . . . . . . . Authchips . | . . . . . . . . . . . . . . . . Time . | . . . . . . . . . . . . . . . . Total Part Build Rating . | . . . . . . . . . . . . . . . . Part Studies Acquired . | . . . . . . . . . . . . . . . . Parts Repaired 3 | . . . . 3 . . . . . . . . . . . Time 198 | . . . . 198 . . . . . . . . . . . Parts Recycled . | . . . . . . . . . . . . . . . . Recycled Matter . | . . . . . . . . . . . . . . . . Retrieved Matter . | . . . . . . . . . . . . . . . . Retrieved Components 3 | . . . . . . . . . . 3 . . . . . Parts Scanalyzed . | . . . . . . . . . . . . . . . . Part Schematics Acquired . | . . . . . . . . . . . . . . . . Parts Damaged . | . . . . . . . . . . . . . . . . Bothacking | -11 -10 -10 -8 -8 -7 -7 -7 -7 -6 -6 -5 -5 -5 -5 -4 ------------ Run | Yrd Mat Sub Mat Sto Fac Low Low Zio Pro Fac Fac Upp Upp War Pro Used RIF Installer . | . . . . . . . . . . . . . . . . Robots Hacked 5 | . . . . 1 . . . 1 . 1 2 . . . . Non-combat 2 | . . . . . . . . . . . 2 . . . . Combat 3 | . . . . 1 . . . 1 . 1 . . . . . Robot Hacks Applied 5 | . . . . 1 . . . 1 . 1 2 . . . . parse_system 3 | . . . . 1 . . . 1 . 1 . . . . . find_chute 1 | . . . . . . . . . . . 1 . . . . find_recycling 1 | . . . . . . . . . . . 1 . . . . Relay Couplers Released . | . . . . . . . . . . . . . . . . Fabnet Peak Effective % . | . . . . . . . . . . . . . . . . Robots Rewired 8 | . . . . . . 3 . . . . . . . 5 . Allies Hacked 1 | . . . . . . . . . . . . . . 1 . Hacks Repelled . | . . . . . . . . . . . . . . . . Allies | -11 -10 -10 -8 -8 -7 -7 -7 -7 -6 -6 -5 -5 -5 -5 -4 -------- Run | Yrd Mat Sub Mat Sto Fac Low Low Zio Pro Fac Fac Upp Upp War Pro Total Allies 23 | . . . . . . 3 . 9 . 2 3 . . 6 . Largest Group 9 | . . . . . . 3 3 9 9 7 2 . . 5 . Highest-Rated Group 351 | . . . . . . 48 48 271 271 351 170 . . 301 . Highest-Rated Ally 89 | . . . . . . 16 16 41 41 85 85 . . 89 . Zionite Dispatches 3 | . . . . . . . . . . 1 2 . . . . Heavy 2 | . . . . . . . . . . 1 1 . . . . Trap Resupply 1 | . . . . . . . . . . . 1 . . . . Total Orders 20 | . . . . 5 . . 1 . . . 3 . . 11 . STAY 6 | . . . . 1 . . 1 . . . 1 . . 3 . ROAM 2 | . . . . . . . . . . . . . . 2 . FOLLOW 3 | . . . . . . . . . . . 1 . . 2 . AID 1 | . . . . . . . . . . . . . . 1 . DROP 1 | . . . . . . . . . . . 1 . . . . EXPLORE 7 | . . . . 4 . . . . . . . . . 3 . Ally Attacks 249 | . . . . . . 8 18 . 51 40 23 . 20 89 . Total Damage 6101 | . . . . . . 100 212 . 724 1128 1281 . 517 2139 . Kills 44 | . . . . . . 2 3 . 8 11 9 . 4 7 . Allies Corrupted 6 | . . . . 2 . . . . . 1 1 . . 2 . Allies Melted 1 | . . . . . . . . . . . . . . 1 . Borg Created 13 | . . . . . . . . . . . . . 4 9 . Largest Collective 6 | . . . . . . . . . . . . . 4 6 . Intel | -11 -10 -10 -8 -8 -7 -7 -7 -7 -6 -6 -5 -5 -5 -5 -4 ------- Run | Yrd Mat Sub Mat Sto Fac Low Low Zio Pro Fac Fac Upp Upp War Pro Active Infowar (turns) 15350 | 21 184 5654 . . 442 1414 1902 1879 2250 743 474 . . 387 . Optics 387 | . . . . . . . . . . . . . . 387 . Sensors 8188 | . . . . . . 1414 1902 1879 2250 743 . . . . . Structural 4211 | . . 4211 . . . . . . . . . . . . . Seismic 2090 | 21 184 1443 . . 442 . . . . . . . . . . Jamming 474 | . . . . . . . . . . . 474 . . . . Robot Analysis Total 2 | . 2 . . . . . . . . . . . . . . Derelict Logs Recovered 5 | . . 1 . . . 1 . . 2 . . . 1 . . Drone Launches 51 | . . . . 15 . . . . . . . . . 36 . Drone Recoveries 9 | . . . . 3 . . . . . . . . . 6 . Zionite Intel Received 3 | . . . . . . . . . . 3 . . . . . Prototype Stockpiles 1 | . . . . . . . . . . 1 . . . . . Active Garrisons 1 | . . . . . . . . . . 1 . . . . . Depthwide Sectors/0 1 | . . . . . . . . . . 1 . . . . . Exploration | -11 -10 -10 -8 -8 -7 -7 -7 -7 -6 -6 -5 -5 -5 -5 -4 ------------- Run | Yrd Mat Sub Mat Sto Fac Low Low Zio Pro Fac Fac Upp Upp War Pro Turns Passed 37257 | 121 658 15704 160 2294 2678 1765 1944 1888 2250 2803 1648 563 1106 1661 14 Spaces Moved 15846 | 64 368 5846 54 790 1190 802 1137 915 1067 1084 828 323 582 790 6 Core 13 | 3 . . . . . . . . . . . . . 5 5 Treads 5069 | . 227 4838 . . . . . . . 4 . . . . . Legs . | . . . . . . . . . . . . . . . . Wheels 10754 | 61 141 1008 54 787 1184 802 1137 915 1067 1080 828 323 582 785 . Hover 9 | . . . . 3 6 . . . . . . . . . . Flight 1 | . . . . . . . . . . . . . . . 1 Fastest Speed 35 | 50 95 110 148 95 85 125 145 185 200 135 125 135 135 50 35 Average Speed 173 | 97 135 194 168 204 109 131 159 199 200 152 154 158 164 159 47 Slowest Speed 1675 | 100 160 260 210 1675 350 145 200 200 200 326 350 180 185 185 50 Overloaded Moves . | . . . . . . . . . . . . . . . . Propulsion Burnouts . | . . . . . . . . . . . . . . . . Robots Hopped . | . . . . . . . . . . . . . . . . Potential Cave-ins . | . . . . . . . . . . . . . . . . Cave-ins Triggered . | . . . . . . . . . . . . . . . . Exploration Rate (%) 57 | 4 55 97 8 82 33 88 96 88 93 27 27 54 72 94 4 Regions Visited 15 Branch Regions 10 Pre-discovered Areas 10 | . . . . . . . . . . 10 . . . . . Known Exits Taken 6 | . . . . . 1 1 1 1 1 1 . . . . . Unknown Exits Taken 9 | 1 1 1 1 1 . . . . . . 1 1 1 1 . Scrap Searched 33 | . . 14 . . . 4 3 4 2 . . 1 5 . . Spaces Dug 157 | . . 47 11 1 1 15 21 . 46 1 14 . . . . Terrain Destroyed 586 | . 4 183 22 12 2 36 65 . 76 81 86 8 . 11 . Melee 10 | . . 3 1 1 . . . . 1 1 3 . . . . Projectile 105 | . . 49 1 1 2 . . . . 10 23 8 . 11 . AOE 471 | . 4 131 20 10 . 36 65 . 75 70 60 . . . . Terrain Rammed . | . . . . . . . . . . . . . . . . Walls Destroyed . | . . . . . . . . . . . . . . . . Machines Disabled . | . . . . . . . . . . . . . . . . Actions | -11 -10 -10 -8 -8 -7 -7 -7 -7 -6 -6 -5 -5 -5 -5 -4 --------- Run | Yrd Mat Sub Mat Sto Fac Low Low Zio Pro Fac Fac Upp Upp War Pro Total 24477 | 105 461 9900 99 1297 2410 1486 1211 975 1162 2110 1051 363 708 1128 11 Wait 6879 | 22 28 3741 19 235 1050 616 20 36 71 765 19 1 88 168 . Move 15831 | 63 367 5845 53 789 1189 801 1136 914 1066 1083 827 322 581 789 6 Hop . | . . . . . . . . . . . . . . . . Pick Up 209 | 6 14 33 3 38 21 7 7 3 1 30 15 10 8 13 . Fast Attach 139 | 7 . 8 3 17 20 . 5 6 2 33 23 5 2 8 . Attach 93 | . . 7 4 14 7 . 8 1 1 22 13 2 3 9 2 Detach 21 | . . 2 . 3 2 . 1 2 . 6 4 . . 1 . Swap 203 | . 10 31 2 26 18 17 4 2 7 45 16 8 2 15 . Drop 223 | . 8 29 2 32 30 2 1 9 2 45 24 9 7 23 . Fire 590 | 7 34 189 12 64 72 7 28 1 9 58 76 5 7 21 . Melee 147 | . . 15 1 65 . 1 1 1 3 23 30 1 2 1 3 Ram . | . . . . . . . . . . . . . . . . Kick . | . . . . . . . . . . . . . . . . Crush . | . . . . . . . . . . . . . . . . Escape Stasis 8 | . . . . 8 . . . . . . . . . . . Rewire 100 | . . . . . . 35 . . . . . . . 65 . Trap 4 | . . . . . . . . . . . 4 . . . . Miscellaneous 30 | . . . . 6 1 . . . . . . . 8 15 . Route ------- -11/Scrapyard -10/Materials (discovered 3 exits: [*Mat] / [*Min] / *Sub) -10/Subcaves (discovered 2 exits: [*Mat x2]) -8/Materials -8/Storage (discovered 2 exits: *Fac / [*Rec]) -7/Factory (discovered 3 exits: *Fac / *Low x2) -7/Lower Caves -7/Lower Caves (discovered 2 exits: *Fac / *Zio) -7/Zion -6/Proximity Caves -6/Factory (discovered 3 exits: *Fac / *Low x2) -5/Factory -5/Upper Caves -5/Upper Caves -5/Warlord -4/Proximity Caves History --------- Turn | Location | Event 9 | -11/Scrapyard | Discovered new exit (range 14) 122 | -11/Scrapyard | Entered Materials 327 | -10/Materials | Build established: Mutant 431 | -10/Materials | Discovered new exit (range 9) 501 | -10/Materials | Discovered new exit (range 16) 772 | -10/Materials | Discovered new exit (range 6) 780 | -10/Materials | Entered Subcaves 938 | -10/Subcaves | Visited 4L-MR0's lab 955 | -10/Subcaves | Found Rainbow Chip 1286 | -10/Subcaves | Shifting Twisted Machinery released Flamer 1289 | -10/Subcaves | Shifting Twisted Machinery released Slug Cannon 1308 | -10/Subcaves | Shifting Twisted Machinery released Riot Gun 1310 | -10/Subcaves | Shifting Twisted Machinery released Sub. Power Source 1500 | -10/Subcaves | A swath of the cavern ceiling suddenly collapsed 1583 | -10/Subcaves | Ambushed by Subdweller buried in earth 2757 | -10/Subcaves | Discovered new exit (range 9) 2793 | -10/Subcaves | Shifting Twisted Machinery released Sub. Monowheel 2830 | -10/Subcaves | Shifting Twisted Machinery released Flamer 3013 | -10/Subcaves | Curiously followed by a Cobbler waking with a query about "LVR3C" 6990 | -10/Subcaves | Ambushed by Subdweller buried in earth 7135 | -10/Subcaves | Discovered new exit (range 9) 14285 | -10/Subcaves | Ambushed by Subdweller buried in earth 14376 | -10/Subcaves | Ambushed by Subdweller buried in earth 14378 | -10/Subcaves | Ambushed by Subdweller buried in earth 14957 | -10/Subcaves | Ambushed by Subdweller buried in earth 15162 | -10/Subcaves | Ambushed by Subdweller buried in earth 15164 | -10/Subcaves | Ambushed by Subdweller buried in earth 15701 | -10/Subcaves | Ambushed by Subdweller buried in earth 16078 | -10/Subcaves | Found SUBCON Basin 16305 | -10/Subcaves | Build established: Hauler-Mutant 16326 | -10/Subcaves | Found Prototype Special Melee Weapon 16484 | -10/Subcaves | Entered Materials 16484 | -8/Materials | Evolved 4 slots: Propulsion x1, Utility x2, Weapon x1 16536 | -8/Materials | Discovered new exit (range 15) 16644 | -8/Materials | Entered Storage 16674 | -8/Storage | Lost 6 parts (3n3w) 16862 | -8/Storage | Lost 6 allies 17044 | -8/Storage | Search patrols dispatched 17245 | -8/Storage | Destroyed 7 combat bots 17266 | -8/Storage | Lost 4 allies 17444 | -8/Storage | Search patrols dispatched 17724 | -8/Storage | Discovered new exit (range 5) 17844 | -8/Storage | First assault squad dispatched 17921 | -8/Storage | Used back door to open Recycling access 17921 | -8/Storage | Discovered new exit (range 5) 17939 | -8/Storage | Met 01-MTF 18052 | -8/Storage | Build established: Hauler-Tank 18272 | -8/Storage | Repaired Arm. Wheel 18485 | -8/Storage | Repaired Humpback 18678 | -8/Storage | Repaired Centrium Light Armor Plating 18790 | -8/Storage | Build established: Hauler-Mutant 18792 | -8/Storage | Core integrity fell below 50% 18813 | -8/Storage | Destroyed 01-MTF 18836 | -8/Storage | Lost 3 parts (2n1w) 18891 | -8/Storage | Core integrity fell below 20% 18921 | -8/Storage | Lost 4 parts (2u2w) 18938 | -8/Storage | Entered Factory 18938 | -7/Factory | Evolved 2 slots: Propulsion x1, Utility x1 18950 | -7/Factory | Identified exit to DSF 19263 | -7/Factory | Released subatomizers from SUBCON Basin 19495 | -7/Factory | Build established: Scavenger-Gunner 19841 | -7/Factory | Discovered new exit (range 6) 19923 | -7/Factory | Identified exit to Factory 20808 | -7/Factory | Sterilization system engaged 20808 | -7/Factory | Non-combat units ordered to evacuate 20908 | -7/Factory | Combat units ordered to evacuate 21108 | -7/Factory | Ambient heat levels rising (+10) 21253 | -7/Factory | Discovered new exit (range 6) 21258 | -7/Factory | Ambient heat levels rising (+10) 21408 | -7/Factory | Ambient heat levels rising (+10) 21492 | -7/Factory | Build established: Hauler-Mutant 21558 | -7/Factory | Ambient heat levels rising (+10) 21601 | -7/Factory | Discovered new exit (range 9) 21615 | -7/Factory | Identified exit to Lower Caves 21616 | -7/Factory | Entered Lower Caves 22782 | -7/Lower Caves | Learned Factory stockpile data 22801 | -7/Lower Caves | Encountered a Warlord checkpoint 22978 | -7/Lower Caves | Attacked by a delusional Derelict stockpiling Unaware 23051 | -7/Lower Caves | Discovered new exit (range 12) 23284 | -7/Lower Caves | Identified exit to Lower Caves 23381 | -7/Lower Caves | Entered another Lower Caves area 23381 | -7/Lower Caves | Accompanied by 3 allies 23491 | -7/Lower Caves | Discovered exit to Factory (range 14) 23572 | -7/Lower Caves | Build established: Hauler-Skirmisher 23688 | -7/Lower Caves | Encountered a Warlord checkpoint 24081 | -7/Lower Caves | Spotted B-75 Beast 24639 | -7/Lower Caves | Core integrity fell below 50% 24651 | -7/Lower Caves | Destroyed B-75 Beast 24679 | -7/Lower Caves | Lost 12 parts (1p4n2u5w) 24887 | -7/Lower Caves | Build established: Hauler-Mutant 25113 | -7/Lower Caves | Discovered new exit (range 12) 25323 | -7/Lower Caves | Identified exit to Zion 25325 | -7/Lower Caves | Entered Zion 25406 | -7/Zion | Discovered new exit (range 10) 25424 | -7/Zion | Identified exit to Proximity Caves 25483 | -7/Zion | Found Prototype Device 25499 | -7/Zion | Identified Bomb Factory No. 2 25571 | -7/Zion | Gained Derelict followers 26019 | -7/Zion | Learned Factory emergency access door positions 26367 | -7/Zion | Given the Hacking Drone Bay 26372 | -7/Zion | Found Prototype Device 26372 | -7/Zion | Identified Hacking Drone Bay 26774 | -7/Zion | Met Imprinter 26828 | -7/Zion | Imprinted 26830 | -7/Zion | Declared Zion's savior 27080 | -7/Zion | Build established: Hauler-Skirmisher 27213 | -7/Zion | Entered Proximity Caves 27213 | -6/Proximity Caves | Accompanied by 9 allies 27719 | -6/Proximity Caves | Received a Behemoth hack from an annoying Tinkerer 27909 | -6/Proximity Caves | Build established: Hauler-Mutant 28391 | -6/Proximity Caves | Learned Factory emergency access door positions 28528 | -6/Proximity Caves | Build established: Hauler-Skirmisher 28715 | -6/Proximity Caves | Learned 4 Factory zone layouts 29029 | -6/Proximity Caves | Found Alien Artifact 29029 | -6/Proximity Caves | Identified Core Expander 29029 | -6/Proximity Caves | Installed Core Expander, added new Utility slot 29252 | -6/Proximity Caves | Discovered exit to Factory (range 10) 29321 | -6/Proximity Caves | Build established: Hauler-Mutant 29463 | -6/Proximity Caves | Entered Factory 29463 | -6/Factory | Accompanied by 6 allies 29463 | -6/Factory | Evolved 2 slots: Weapon x2 29634 | -6/Factory | Discovered new exit (range 3) 29635 | -6/Factory | Identified exit to Lower Caves 29862 | -6/Factory | Retrieved Zion intel report: Active Garrisons 29863 | -6/Factory | Zion Heavy squad teleported in 29990 | -6/Factory | Build established: Hauler-Tank 30168 | -6/Factory | Lost 3 allies 30254 | -6/Factory | Unchained authorized (6S-H0T) 30370 | -6/Factory | Retrieved Zion intel report: Depthwide Sectors/-6 30398 | -6/Factory | Discovered new exit (range 7) 30405 | -6/Factory | Identified exit to Factory 30489 | -6/Factory | Lost 3 allies 30495 | -6/Factory | Retrieved Zion intel report: Prototype Stockpiles 31033 | -6/Factory | Terminal network hard line cut 31277 | -6/Factory | Discovered exit to Lower Caves (range 4) 31511 | -6/Factory | Lost 3 parts (2n1w) 31672 | -6/Factory | Build established: Hauler-Gunner 31775 | -6/Factory | Lost 3 parts (1n2w) 32147 | -6/Factory | Lost 4 parts (1p3w) 32253 | -6/Factory | Core integrity fell below 50% 32266 | -6/Factory | Entered another Factory area 32266 | -5/Factory | Evolved 2 slots: Utility x1, Weapon x1 32450 | -5/Factory | Build established: Hauler-Gladiator 32461 | -5/Factory | Zion Heavy squad teleported in 32678 | -5/Factory | Found Zio. Weapon Casing 32885 | -5/Factory | Zion Trap Resupply teleported in 33200 | -5/Factory | Build established: Hauler-Gunner 33214 | -5/Factory | Cargo convoy interrupted 33217 | -5/Factory | System corruption reached 10% 33260 | -5/Factory | Lost 6 parts (2n1u3w) 33271 | -5/Factory | Destroyed 8 combat bots 33468 | -5/Factory | System corruption reached 30% 33500 | -5/Factory | Lost 4 parts (1p1n2u) 33571 | -5/Factory | Terminal network hard line cut 33785 | -5/Factory | Discovered new exit (range 5) 33870 | -5/Factory | Build established: Scavenger-Gladiator 33914 | -5/Factory | Entered Upper Caves 33948 | -5/Upper Caves | Lost 3 parts (3n) 34145 | -5/Upper Caves | Attached Rainbow Chip, gained temporary slots: Power, Propulsion, Utility, Weapon 34203 | -5/Upper Caves | Found DCF Scrap (10 items) 34235 | -5/Upper Caves | Build established: Scavenger-Executioner 34416 | -5/Upper Caves | Discovered new exit (range 9) 34477 | -5/Upper Caves | Entered another Upper Caves area 34608 | -5/Upper Caves | Build established: Trapper-Executioner 34722 | -5/Upper Caves | Spotted B-75 Beast 34762 | -5/Upper Caves | Identified 1B-0RG's Assimilator 34811 | -5/Upper Caves | Assimilating Beast 6a into Collective. 34924 | -5/Upper Caves | Assimilating Warrior 6a into Collective. 34930 | -5/Upper Caves | Assimilating Soldier 6a into Collective. 34938 | -5/Upper Caves | Assimilating Soldier 6b into Collective. 35053 | -5/Upper Caves | Build established: Trapper-Mutant 35330 | -5/Upper Caves | Discovered new exit (range 8) 35332 | -5/Upper Caves | Learned Factory security intel 35583 | -5/Upper Caves | Entered Warlord 35583 | -5/Warlord | Accompanied by 4 allies 35649 | -5/Warlord | System corruption cleaned by Quarantine Array 36023 | -5/Warlord | Warlord's base attacked by MAIN.C 36037 | -5/Warlord | Found Prototype Energy Gun 36037 | -5/Warlord | Identified Vortex Shotgun 36048 | -5/Warlord | Found Vortex Shotgun 36216 | -5/Warlord | Rebuked by Warlord 36373 | -5/Warlord | Warlord forces counterattacked 36440 | -5/Warlord | Found Prototype Device 36441 | -5/Warlord | Identified Minesniffer Drone Bay 36608 | -5/Warlord | Spotted B-75 Beast 36613 | -5/Warlord | Allies destroyed B-75 Beast 36617 | -5/Warlord | Spotted B-86 Titan 36625 | -5/Warlord | Destroyed B-86 Titan 36642 | -5/Warlord | Lost 3 allies 36698 | -5/Warlord | Warlord base infiltrated, sounded retreat 36737 | -5/Warlord | Spotted Striker 36751 | -5/Warlord | Allies destroyed Striker 36763 | -5/Warlord | Spotted Striker 36815 | -5/Warlord | Assimilating Archangel 6b into Collective. 36820 | -5/Warlord | Assimilating Archangel 6c into Collective. 36866 | -5/Warlord | Found Prototype Ballistic Cannon 36866 | -5/Warlord | Identified Hvy. Autocannon 36886 | -5/Warlord | Assimilating Archangel 6a into Collective. 37054 | -5/Warlord | Assimilating Champion 6a into Collective. 37079 | -5/Warlord | Attacked by Warlord forces 37095 | -5/Warlord | Core integrity fell below 50% 37095 | -5/Warlord | Destroyed LV-01A 37113 | -5/Warlord | Lost 17 allies 37118 | -5/Warlord | Assimilating Virus 6a into Collective. 37200 | -5/Warlord | Spotted Striker 37202 | -5/Warlord | Assimilating Plague 6a into Collective. 37203 | -5/Warlord | Spotted Executioner 37208 | -5/Warlord | Assimilating Virus 6b into Collective. 37213 | -5/Warlord | Assimilating Striker into Collective. 37217 | -5/Warlord | Assimilating Veteran 6a into Collective. 37231 | -5/Warlord | Discovered new exit (range 13) 37231 | -5/Warlord | Spotted Executioner 37242 | -5/Warlord | Released all parts (6) 37244 | -5/Warlord | Core integrity fell below 20% 37244 | -5/Warlord | Entered Proximity Caves 37250 | -4/Proximity Caves | Spotter reported a threat 37250 | -4/Proximity Caves | Spotter reported a threat 37255 | -4/Proximity Caves | Lost 10 allies 37258 | -4/Proximity Caves | Destroyed by S-27 Virus with Autogun Last Messages --------------- 37239_ Penetrated by Slug. 37240_ Slug penetrates H-77 Assassin. 37240_ Arm. Wheel destroyed. 37241_ Slug penetrates H-77 Assassin. 37241_ Slug penetrates Earth. 37242_ Released Matter Compressor. 37242_ Released Centrium Light Armor Plating. 37242_ Released Gravity Neutralizer. 37242_ Released Rainbow Chip. 37242_ Released Huge Storage Unit. 37242_ Released Exp. Optical Array. 37242_ Temporary Utility slot lost. 37243_ Slug penetrates Wall. LOCATION=UNKNOWN GOAL=ESCAPE 37249_ S-27 Virus Autogun severed. 37250_ N-01 Spotter sends a signal. 37250_ ALERT: Unidentified potential threat approaching Complex 0b10. 37255_ S-27 Virus destroyed. 37256_ Greatsword destroyed. Map ----- +----------------------------------------------------+ | ?????????????????????????????????????????????????? | | ?????????????????????????????????????????????????? | | ?????????????????????????????????????????????????? | | ?????????????????????????????????????????????????? | | ?????????????????????????????????????????????????? | | ?????????????????????????????????????????????????? | | ?????????????????????????????????????????????????? | | ?????????????????????????????????????????????????? | | ?????????????????????????????????????????????????? | | ?????????????????????????????????????????????????? | | ?????????????????????????????????????????????????? | | ????????????????????? ??????????????????????????? | | ????????????????????# ##????????????????????????? | | ????????????????????# #???????????????????????? | | ????????????????????? #####??????????????????? | | ?????????????????????# ##?????????????????? | | ????????????????????## ##????????????????? | | ????????????????????# ?????????????????? | | ?????????????????????# ??????????????????? | | ????????????????????## #??????????????????? | | ????????????????????# ##?######??????????? | | ?????????????? #### ## ###????????? | | ?????????????? ss #????????? | | ??????????????? s #????????? | | ??????????????????????##[ #?????????? | | ???????????????????????##@ ##?????????? | | ????????????????????????##% ###??????????? | | ?????????????????????????###### ###????????????? | | ??????????????????????????????#####??????????????? | | ?????????????????????????????????????????????????? | | ?????????????????????????????????????????????????? | | ?????????????????????????????????????????????????? | | ?????????????????????????????????????????????????? | | ?????????????????????????????????????????????????? | | ?????????????????????????????????????????????????? | | ?????????????????????????????????????????????????? | | ?????????????????????????????????????????????????? | | ?????????????????????????????????????????????????? | | ?????????????????????????????????????????????????? | | ?????????????????????????????????????????????????? | | ?????????????????????????????????????????????????? | | ?????????????????????????????????????????????????? | | ?????????????????????????????????????????????????? | | ?????????????????????????????????????????????????? | | ?????????????????????????????????????????????????? | | ?????????????????????????????????????????????????? | | ?????????????????????????????????????????????????? | | ?????????????????????????????????????????????????? | | ?????????????????????????????????????????????????? | | ?????????????????????????????????????????????????? | +----------------------------------------------------+ Best States ------------- Heat Dissipation 74 Energy Generation 39 Energy Capacity 500 Matter Stores 600 Matter Capacity 600 Sight Range 23 Robot Scan Range 15 Terrain Scan Density 10 Jamming Range 14 Additional Mass Support 12 Armor Coverage 825 Resistance: KI 30 Resistance: TH 10 Utility Shielding 66 Weapon Shielding 100 Weapon Cycling 30 Melee Speed Boost 20 Evasion (%) 50 Targeting Accuracy 16 Target Analysis 9 Recoil Reduction 3 Kinecelleration 40 Offensive Hacking 10 Defensive Hacking 12 Trap Extractor Capacity 8 Item Schematics ----------------- Huge Storage Unit | -10/Materials | Hacked Imp. Cooling System | -7/Zion | Archive Enh. Optical Array | -7/Zion | Archive Angular Momentum Engine | -7/Zion | Archive Remote Datajack | -7/Zion | Archive Imp. Trap Scanner | -7/Zion | Archive Adv. Terrain Scan Processor | -7/Zion | Archive Variable Charge Gun | -7/Zion | Archive Adv. Melee Analysis Suite | -7/Zion | Archive Imp. Deuterium Engine | -7/Zion | Archive Lightning Gun | -7/Zion | Archive Imp. Medium Treads | -7/Zion | Archive Shock Absorption System | -7/Zion | Archive Proton Cannon | -7/Zion | Archive Force Booster | -7/Zion | Archive Wave Gun | -7/Zion | Archive Robot Schematics ------------------ B-48 Gladiator | -7/Zion | Archive T-07 Excavator | -7/Zion | Archive K-01 Serf | -7/Zion | Archive X-82 Rainmaker | -7/Zion | Archive Fabricated ------------ Nothing Repaired ---------- Arm. Wheel | 5% | -8/Storage Humpback | 37% | -8/Storage Centrium Light Armor Plating | 74% | -8/Storage Studied --------- None Alien Tech Used ----------------- Core Expander Achievements -------------- Barbarian Challenges ------------ None Game ------ Seed NullDeliveryFlightbrick Manual? 0 Play Time 04:03:25 Cumulative 1449.6 hours Start 2026.04.16 @ 15:15:30 End 2026.04.17 @ 03:42:46 Sessions 3 Manual Loads 0 Difficulty Rogue Special Mode None Game No. 472 Rogue 465 Adventurer 4 Explorer 3 Win Type - Total 43 Types 19/5/2/4/1/3/4/1/2/2 Lore% 97 Gallery% 95 Achievement% 88 Wizard Run 0 Options --------- Layout 0 ASCII 0 Keyboard 0 Movement Numpad Keybinds 0 Fullscreen 2 Font 18/Terminus Map View 76x50 Zoom Use 0% Tactical HUD 1 Map Filters NONE Filters NONE Steam 1 RUN: 7e5d3036-fcf2-4000-a803-7f86dda04c2f